Cogmind - Beta 13 @@@ ROGUE MODE // 2024.04.04 @ 18:53:42 Player: ChromeKnight Result: Destroyed by P-80 Master with Gamma Rifle Performance ------------- Evolutions (7) 3500 Regions Visited (17) 3400 Robots Destroyed (118) 590 Value Destroyed (9258) 9258 Prototype IDs (29) 580 Alien Tech Used (0) 0 Bonus (6440) 6440 TOTAL SCORE: 23768 Bonus ------- High Alert Combat Kills 375 Follower Combat Kills 2963 Entered Garrisons 1000 Used RIF Installer 2500 Friendly Fire -398 Cogmind --------- Core Integrity 0/1300 Matter 223/300 Energy 99/100 System Corruption 15% Temperature Cool (87) Movement Core (50) Location -3/Research Parts ------- > --- POWER (2) -------- (None) > --- PROPULSION (4) --- (None) > --- UTILITY (13) ----- Relay Coupler [Hunter] (2) > --- WEAPON (2) ------- (None) > --- INVENTORY (5) ---- Improved Cloaking Device Improved Cloaking Device KE Penetrator Linear Accelerator Improved Remote Datajack Peak State ------------ > --- POWER ------------ Light Antimatter Reactor Micro Antimatter Reactor > --- PROPULSION ------- Myomer Leg Centrium Leg Centrium Leg Centrium Leg > --- UTILITY ---------- Large Storage Unit Active Sensor Suite Advanced Targeting Computer Improved Powered Armor Improved Powered Armor Improved Powered Armor Improved Powered Armor Advanced Hacking Suite Relay Coupler [NC] Relay Coupler [Hunter] > --- WEAPON ----------- KE Penetrator KE Penetrator > --- INVENTORY -------- Improved Cooling System Advanced Signal Interpreter Improved Cloaking Device Improved Cloaking Device KE Penetrator Heavy Flak Cannon Improved Remote Datajack [Rating: 132] Favorites ----------- Power Light Ion Engine Engine Light Ion Engine Power Core Light Nuclear Core Reactor Light Antimatter Reactor Propulsion Centrium Leg Treads Improved Treads Leg Centrium Leg Hover Unit Gravmag System Flight Unit Xenon Bombardment Thruster Utility Hacking Suite Device Improved Heat Sink Storage Small Storage Unit Processor Improved Signal Interpreter Hackware Hacking Suite Protection Improved Medium Armor Plating Weapon Beam Rifle Energy Gun Beam Rifle Energy Cannon Enhanced Nova Cannon Ballistic Gun Makeshift Shrapnel Gun Ballistic Cannon Heavy Mass Driver Launcher Missile Launcher Special Weapon Remote Datajack Slashing Weapon Makeshift Sword Special Melee Weapon Advanced Datajack Build | -11 -10 -10 -10 -9 -8 -8 -7 -7 -7 -7 -6 -6 -5 -5 -5 -4 -3 ------- Run | Yrd Mat Min Exi Min Mat Gar Fac Gar Fac Gar Fac Gar Fac Gar Fac Fac Res Slots Evolved 14 | . . . . . 4 . 2 . . . 2 . 2 . . 2 2 Power 1 | . . . . . . . . . . . . . . . . . 1 Propulsion 2 | . . . . . . . . . . . . . . . . 1 1 Utility 11 | . . . . . 4 . 2 . . . 2 . 2 . . 1 . Weapon . | . . . . . . . . . . . . . . . . . . Parts Attached 261 | 6 15 3 4 1 24 25 5 16 6 19 10 4 10 34 23 21 35 Power 24 | 1 2 1 . . 5 2 1 . . 1 1 . 1 3 1 1 4 Engine 10 | 1 2 1 . . 2 2 . . . . . . 1 1 . . . Core 6 | . . . . . 3 . 1 . . . 1 . . . 1 . . Reactor 8 | . . . . . . . . . . 1 . . . 2 . 1 4 Propulsion 29 | 2 5 . 1 . 3 2 . 2 2 3 2 . . 2 . 1 4 Treads 4 | . 3 . 1 . . . . . . . . . . . . . . Leg 14 | 2 2 . . . 3 . . . . . . . . 2 . 1 4 Wheel . | . . . . . . . . . . . . . . . . . . Hover 9 | . . . . . . 2 . . 2 3 2 . . . . . . Flight 2 | . . . . . . . . 2 . . . . . . . . . Utility 136 | 1 3 2 2 . 11 18 4 8 2 7 5 3 5 22 19 12 12 Device 26 | . 1 1 1 . 3 8 1 . 1 . 2 . . 2 3 2 1 Storage 8 | 1 1 1 1 . 1 1 . . . . 1 . . . . 1 . Processor 7 | . 1 . . . 1 1 2 . . . . . . . . 1 1 Hackware 55 | . . . . . 1 8 1 8 1 7 2 3 3 13 4 3 1 Protection 40 | . . . . . 5 . . . . . . . 2 7 12 5 9 Artifact . | . . . . . . . . . . . . . . . . . . Weapon 72 | 2 5 . 1 1 5 3 . 6 2 8 2 1 4 7 3 7 15 Energy Gun 19 | 2 5 . 1 1 4 . . . . 3 1 . . 2 . . . Energy Cannon 7 | . . . . . . . . . . 4 . . . 2 1 . . Ballistic Gun 7 | . . . . . 1 . . . . . . . . . . . 6 Ballistic Cannon 6 | . . . . . . . . . . . . . . . . 4 2 Launcher 4 | . . . . . . 1 . . . . . . . . 1 . 2 Special Weapon 15 | . . . . . . 1 . . 1 1 . . 3 . 1 3 5 Impact Weapon . | . . . . . . . . . . . . . . . . . . Slashing Weapon 7 | . . . . . . 1 . 3 . . . 1 1 1 . . . Piercing Weapon . | . . . . . . . . . . . . . . . . . . Special Melee Weapon 7 | . . . . . . . . 3 1 . 1 . . 2 . . . Unidentified Prototypes 4 | . . . . . 1 . . . . . . . . . 1 1 1 Parts Lost 68 | . 2 1 . . 8 2 . 4 . 1 1 . 3 9 1 7 29 Power 12 | . 1 1 . . 2 2 . . . . . . . 1 . 2 3 Propulsion 10 | . . . . . 2 . . 2 . 1 . . . . . . 5 Utility 35 | . . . . . 3 . . 1 . . . . 3 6 1 4 17 Weapon 11 | . 1 . . . 1 . . 1 . . 1 . . 2 . 1 4 Highest Loss Streak 20 | . 2 1 . . 5 1 . 3 . 1 1 . 3 2 1 2 20 To Critical Strikes . | . . . . . . . . . . . . . . . . . . Average Slot Usage (%) 93 | . 93 99 100 100 95 91 99 87 90 93 89 93 88 92 97 82 73 Engine 4 | . 12 13 14 14 . 5 5 . . . . . . . . . . Core 2 | . . . . . 8 . 1 1 . . 1 6 4 . 3 1 . Reactor 1 | . . . . . . . . . . 6 4 . . 3 1 2 5 Treads 5 | . 10 28 28 28 1 . . . . . . . . . . . . Leg 7 | . 17 . . . 16 9 . . . . . . . 6 11 15 16 Hover 3 | . . . . . . 8 15 3 8 14 11 6 5 1 . . . Device 8 | . 3 14 14 14 21 5 14 . 6 . 5 6 4 2 5 7 3 Storage 9 | . 14 14 14 14 13 9 7 7 7 7 6 6 5 5 5 6 3 Processor 4 | . 5 . . . 2 11 7 7 7 7 6 6 5 5 2 . 5 Hackware 20 | . . . . . 3 13 29 44 38 45 43 46 42 41 29 22 14 Protection 7 | . . . . . 10 9 . . . . . . 4 10 23 15 15 Energy Gun 8 | . 27 28 28 28 9 3 . . . . 1 2 . 3 . . . Ballistic Gun 1 | . . . . . 7 3 . . . . . . . . . . 4 Special Weapon 1 | . . . . . . 3 7 1 6 6 1 . 1 . 3 2 . Slashing Weapon 1 | . . . . . . 5 7 5 . . . 3 3 . . . . Special Melee Weapon 1 | . . . . . . . . 5 6 . 4 6 5 4 1 . . Naked Turns . | . . . . . . . . . . . . . . . . . . Heaviest Build 119 | 10 19 50 50 50 61 57 18 18 10 27 21 18 19 64 64 96 119 Greatest Support 115 | 20 46 46 46 46 46 27 18 18 16 24 21 20 20 60 60 90 115 Greatest Overweight (x) 6 | . 5 1 1 1 3 6 . 4 1 1 . . . 1 1 1 6 Average Overweight (x) . | . . . 1 1 1 . . . . . . . . . . . . Largest Inventory Capacity 20 | 8 8 20 20 20 20 20 8 8 8 8 8 8 8 8 8 15 15 Average Capacity 13 | 6 8 18 20 20 20 14 8 8 8 8 8 8 8 8 8 14 14 Most Carried 20 | . 8 17 20 20 20 20 8 8 8 8 8 8 8 8 8 11 15 Average Carried 11 | . 3 10 19 19 18 13 7 7 7 7 7 7 7 7 7 5 9 Final Capacity 20 | 8 8 20 20 20 20 8 8 8 8 8 8 8 8 8 8 15 5 Final Carried 20 | . 8 17 20 19 20 8 8 8 8 8 8 8 8 8 7 11 5 Class Distribution -------------------- 24% | Botlord-Mutant 20% | Scavenger-Mutant 15% | Bothacker-Mutant 15% | Mutant 12% | Commander-Mutant 4% | Bothacker-Scout Dominant Class ---------------- Mutant | -10/Materials Mutant | -10/Mines Commander-Mutant | -10/Exiles Commander-Mutant | -9/Mines Scavenger-Mutant | -8/Materials Scavenger-Mutant | -8/Garrison Bothacker-Scout | -7/Factory Bothacker-Mutant | -7/Garrison Bothacker-Mutant | -7/Factory Bothacker-Mutant | -7/Garrison Bothacker-Mutant | -6/Factory Botlord-Mutant | -6/Garrison Botlord-Mutant | -5/Factory Botlord-Mutant | -5/Garrison Botlord-Mutant | -5/Factory Botlord-Mutant | -4/Factory Scavenger-Mutant | -3/Research Resources | -11 -10 -10 -10 -9 -8 -8 -7 -7 -7 -7 -6 -6 -5 -5 -5 -4 -3 ----------- Run | Yrd Mat Min Exi Min Mat Gar Fac Gar Fac Gar Fac Gar Fac Gar Fac Fac Res Matter Collected 4603 | 188 212 30 10 40 363 395 30 232 35 277 60 . 230 427 438 536 1100 Remotely . | . . . . . . . . . . . . . . . . . . Salvage Created 5512 | . 559 120 46 . 1321 284 . 236 . 93 . . . 327 843 200 1483 Parts 261 | . 32 7 3 . 52 17 . 12 . 4 . . . 14 33 11 76 Haulers Intercepted 3 | . 1 . . . 2 . . . . . . . . . . . . Recyclers Shooed 9 | . 1 . . . 3 . . . . . . . . . . . 5 Parts Field Recycled . | . . . . . . . . . . . . . . . . . . Retrieved Matter . | . . . . . . . . . . . . . . . . . . Parts Self-Destructed . | . . . . . . . . . . . . . . . . . . Prevented . | . . . . . . . . . . . . . . . . . . Kills | -11 -10 -10 -10 -9 -8 -8 -7 -7 -7 -7 -6 -6 -5 -5 -5 -4 -3 ------- Run | Yrd Mat Min Exi Min Mat Gar Fac Gar Fac Gar Fac Gar Fac Gar Fac Fac Res Combat Hostiles Destroyed 80 | . 9 4 . . 15 6 . 2 . 2 . . . 3 13 4 22 Melee 3 | . . . . . . 1 . 2 . . . . . . . . . Guns 46 | . 9 4 . . 15 5 . . . . . . . 2 . . 11 Cannons 18 | . . . . . . . . . . 2 . . . 1 7 4 4 AOE 11 | . . . . . . . . . . . . . . . 4 . 7 Classes Destroyed 16 | . 8 . . . 3 1 . . . . . . . 2 1 . 1 Worker 9 | . 2 . . . . . . . . . . . . . . 1 6 Builder 10 | . 2 . . . 1 . . . . . . . . . . 1 6 Tunneler 1 | . . . . . 1 . . . . . . . . . . . . Hauler 3 | . 1 . . . 2 . . . . . . . . . . . . Recycler 10 | . 2 . . . 6 . . . . . . . . . . . 2 Operator 1 | . 1 . . . . . . . . . . . . . . . . Watcher 2 | . 1 . . . . . . . . . . . . . . . 1 Swarmer 15 | . 3 2 . . . 4 . . . . . . . . 1 . 5 Saboteur 1 | . . . . . . . . . . . . . . . 1 . . Grunt 31 | . 6 2 . . 12 1 . . . . . . . 1 1 2 6 Brawler 2 | . . . . . . . . . . . . . . . 2 . . Duelist 1 | . . . . . 1 . . . . . . . . . . . . Sentry 12 | . . . . . 2 . . 2 . . . . . 1 5 . 2 Hunter 4 | . . . . . . . . . . . . . . . . . 4 Programmer 14 | . . . . . . 1 . . . 2 . . . . 4 2 5 Behemoth 1 | . . . . . . . . . . . . . . 1 . . . Savage 1 | . . . . . . . . . . . . . . 1 . . . Best Kill Streak 10 | . 5 2 . . 4 4 . 2 . 1 . . . 1 3 1 10 Combat Bots Only 7 | . 3 2 . . 4 4 . 2 . 1 . . . 1 3 1 7 Max Kills in Single Turn 3 | . 2 2 . . 2 2 . 1 . 1 . . . 1 3 1 3 Gunslinging 1 | . . 1 . . . . . . . . . . . . . . . Exploded 3 | . . . . . . . . . . . . . . . 3 . 2 Melee 1 | . . . . . . 1 . 1 . . . . . . . . . Uniques/NPCs Destroyed . | . . . . . . . . . . . . . . . . . . Combat | -11 -10 -10 -10 -9 -8 -8 -7 -7 -7 -7 -6 -6 -5 -5 -5 -4 -3 -------- Run | Yrd Mat Min Exi Min Mat Gar Fac Gar Fac Gar Fac Gar Fac Gar Fac Fac Res Hostile Shots Fired 1428 | . 73 10 . 6 113 29 15 78 9 25 18 . 24 148 54 268 558 Missed 540 | . 19 3 . 3 25 14 8 39 3 3 9 . 11 56 14 139 194 Damage Taken 16112 | . 667 78 . 54 1391 306 76 324 38 335 109 . 461 1472 948 2334 7519 Core 2658 | . 169 . . . 188 57 42 125 5 74 47 . 139 287 76 138 1311 Absorbed by Shields 54 | . . . . . . . . . . . . . . 54 . . . Redirected to Shielding 141 | . . . . . 115 26 . . . . . . . . . . . Ignored by Resistances 49 | . . . . . . . . . . . . . . 26 23 . . Regen/Repaired (Parts) 427 | . . . . . . . . . . . . . . . 52 . 375 Core Remaining (%) 68 | 100 . . . 32 . 55 . . . 64 . 94 . . 49 88 . Volleys Fired 526 | . 73 7 1 2 90 31 3 1 1 33 6 2 12 45 64 68 87 Largest 2 | . 2 2 2 2 2 2 1 1 1 1 1 1 1 1 1 1 2 Hottest 130 | . 130 112 112 112 125 87 5 5 5 60 60 60 5 120 120 120 75 Shots Fired 681 | . 110 14 2 4 143 41 3 1 1 34 6 2 12 45 64 68 131 Gun 414 | . 110 14 2 4 143 22 . . . 5 3 2 . 23 . . 86 Cannon 148 | . . . . . . . . . . 21 . . . 8 41 50 28 Launcher 15 | . . . . . . 5 . . . . . . . . . . 10 Special 104 | . . . . . . 14 3 1 1 8 3 . 12 14 23 18 7 Kinetic 189 | . . . . . 31 10 . . . . . . . . . 34 114 Thermal 363 | . 110 14 2 4 112 12 . . . 21 . . . 31 41 16 . Explosive 15 | . . . . . . 5 . . . . . . . . . . 10 Electromagnetic 10 | . . . . . . . . . . 5 3 2 . . . . . Robot Hit Streak 19 | . 16 3 1 2 18 8 3 4 5 14 2 . 4 6 8 19 9 Robot Miss Streak 12 | . 6 1 . 2 4 3 . . . 2 3 . 3 6 4 12 2 Penetration Max 1 | . . . . . . . . . . . . . . . . . 1 Secondary Targets 6 | . 1 1 . . 3 . . . . . . . . . . . 1 Max Gunslinging Chain 1 | . 1 1 . . 1 . . . . . . . . . . . 1 Shots Hit Robots 561 | . 66 7 1 2 106 32 3 17 5 17 19 8 8 80 43 56 91 Core Hits 230 | . 31 5 1 . 51 10 . 5 . 2 . . . 6 14 16 89 Critical Kills 2 | . . . . . . . . . . . . . . . 1 . 1 Critical Parts Destroyed 6 | . . . . . . . . . . . . . . . . . 6 Critical Strikes 33 | . 2 . . . 15 . . . . . . . . . 1 2 13 Burn 17 | . 2 . . . 15 . . . . . . . . . . . . Meltdown 1 | . . . . . . . . . . . . . . . 1 . . Destroy 7 | . . . . . . . . . . . . . . . . . 7 Blast 8 | . . . . . . . . . . . . . . . . 2 6 Melee Attacks 175 | . . . . . . 17 11 42 4 . 19 9 4 67 2 . . Impact . | . . . . . . . . . . . . . . . . . . Slashing 70 | . . . . . . 17 11 34 . . . 1 . 7 . . . Piercing . | . . . . . . . . . . . . . . . . . . Sneak Attacks 67 | . . . . . . 1 . . 1 . 12 7 . 44 2 . . Combat Hostiles 15 | . . . . . . 1 . . . . 11 1 . 2 . . . Follow-up Attacks . | . . . . . . . . . . . . . . . . . . Damage Inflicted 15307 | . 864 103 18 37 2040 800 . 632 . 305 48 . . 624 1707 1991 6138 Guns 5702 | . 864 103 18 30 2040 290 . . . . 48 . . 276 . . 2033 Cannons 5284 | . . . . . . . . . . 305 . . . 329 1088 1943 1619 Explosions 3053 | . . . . . . . . . . . . . . . 619 . 2434 Melee 1142 | . . . . . . 510 . 632 . . . . . . . . . Ramming 126 | . . . . 7 . . . . . . . . . 19 . 48 52 Kinetic 5677 | . . . . . 617 192 . . . . . . . . . 1216 3652 Thermal 5880 | . 864 103 18 30 1423 98 . . . 305 . . . 605 1707 727 . Explosive 2434 | . . . . . . . . . . . . . . . . . 2434 Electromagnetic 48 | . . . . . . . . . . . 48 . . . . . . Impact . | . . . . . . . . . . . . . . . . . . Slashing 1142 | . . . . . . 510 . 632 . . . . . . . . . Piercing . | . . . . . . . . . . . . . . . . . . Highest Corruption 15 | . . . . . . . 1 1 1 3 . . 1 1 4 3 15 Average Corruption 1 | . . . . . . . 1 1 1 2 . . 1 1 2 2 4 Corruption Purged . | . . . . . . . . . . . . . . . . . . Corruption Blocked . | . . . . . . . . . . . . . . . . . . Effects 69 | . . . . . . . 4 7 1 6 . . . 7 25 2 17 Message Errors 16 | . . . . . . . . 2 . 1 . . . 1 6 1 5 Matter Fused 19 | . . . . . . . 2 1 1 1 . . . 4 8 . 2 Heat Flow Errors 9 | . . . . . . . 2 2 . . . . . 1 2 . 2 Energy Discharges 8 | . . . . . . . . 1 . 2 . . . 1 3 1 . Parts Rejected 1 | . . . . . . . . 1 . . . . . . . . . Data Loss (minor) 10 | . . . . . . . . . . . . . . . 5 . 5 Data Loss (major) 2 | . . . . . . . . . . . . . . . 1 . 1 Misfires 3 | . . . . . . . . . . 1 . . . . . . 2 Alerts 1 | . . . . . . . . . . 1 . . . . . . . Overload Shots . | . . . . . . . . . . . . . . . . . . Overflow Damage 419 | . . . . 3 . 6 . . . . . . . . 105 175 130 Projectiles 311 | . . . . . . . . . . . . . . . 16 175 120 Explosions 101 | . . . . . . 2 . . . . . . . . 89 . 10 Melee 7 | . . . . 3 . 4 . . . . . . . . . . . Knockbacks 19 | . . . . . . . . . . . . . . 1 . 3 15 Impact 1 | . . . . . . . . . . . . . . 1 . . . Kinetic 15 | . . . . . . . . . . . . . . . . 3 12 Secondary 3 | . . . . . . . . . . . . . . . . . 3 Self-Inflicted Damage 258 | . . . . . . 36 . . . . . . . 9 88 . 125 Shots 6 | . . . . . . 1 . . . . . . . . 1 . 4 Rammed 4 | . . . . 1 1 . . . . . . . . 2 . . . Targets Rammed 14 | . . . . 1 1 . . . . . . . . 2 . 2 8 Kicked 10 | . . . . . . . . . . . . . . . . 2 8 Crushed . | . . . . . . . . . . . . . . . . . . Highest Temperature 514 | . 514 75 9 18 480 120 196 219 . 66 9 5 . 444 180 329 194 Average Temperature 108 | . 147 32 6 10 216 49 102 99 . 24 4 3 . 192 55 76 41 Received Heat Transfer 2803 | . 363 24 . . 792 18 36 102 6 18 18 . 60 196 120 447 603 Effects 16 | . 8 . . . 7 . . . . . . . . 1 . . . Shutdowns 4 | . 2 . . . 2 . . . . . . . . . . . . Energy Bleed 5 | . 1 . . . 4 . . . . . . . . . . . . Interference 3 | . 3 . . . . . . . . . . . . . . . . Short Circuit 2 | . 2 . . . . . . . . . . . . . . . . Damage (minor) 2 | . . . . . 1 . . . . . . . . 1 . . . Siege Activations . | . . . . . . . . . . . . . . . . . . Robots Corrupted . | . . . . . . . . . . . . . . . . . . Combat Hostiles . | . . . . . . . . . . . . . . . . . . Parts Fried . | . . . . . . . . . . . . . . . . . . Impact Corruptions 3 | . . . . 1 . . . . . . . . . 1 . 1 . Robots Melted 2 | . . . . . . . . . . . . . . . 2 . . Combat Hostiles 2 | . . . . . . . . . . . . . . . 2 . . Parts Melted 20 | . 5 . . . 7 . . . . 4 . . . . 4 . . Heat Transferred 9578 | . 2198 259 37 74 4107 185 . . . 333 . . . 592 1275 518 . Parts Sabotaged . | . . . . . . . . . . . . . . . . . . Parts Stolen . | . . . . . . . . . . . . . . . . . . Parts Stripped . | . . . . . . . . . . . . . . . . . . Power Chain Reactions . | . . . . . . . . . . . . . . . . . . Alert | -11 -10 -10 -10 -9 -8 -8 -7 -7 -7 -7 -6 -6 -5 -5 -5 -4 -3 ------- Run | Yrd Mat Min Exi Min Mat Gar Fac Gar Fac Gar Fac Gar Fac Gar Fac Fac Res Peak Influence 1097 | . 175 128 . 30 166 1028 576 763 415 421 250 369 622 1097 783 304 513 Initial 575 | . . 13 . . . 66 539 327 400 259 215 109 193 435 575 264 47 Average 299 | . 102 47 . 5 56 362 482 493 392 357 158 288 369 635 570 167 233 Maximum Alert Level 3 | . . . . . . 3 2 3 2 2 1 1 2 3 3 1 2 Low Security (%) 42 | 100 100 100 . 100 100 32 . . . . 42 9 8 . . 54 29 Level 1 21 | . . . . . . 19 21 42 39 74 57 90 46 1 3 45 63 Level 2 30 | . . . . . . 38 78 53 60 25 . . 44 64 85 . 6 Level 3 6 | . . . . . . 9 . 4 . . . . . 33 11 . . Level 4 . | . . . . . . . . . . . . . . . . . . Level 5 . | . . . . . . . . . . . . . . . . . . High Security . | . . . . . . . . . . . . . . . . . . Max Security . | . . . . . . . . . . . . . . . . . . Squads Dispatched 35 | . . . . 1 2 . 4 . 1 . 4 . 3 . 7 5 8 Investigation 7 | . . . . . 2 . 2 . . . 1 . . . 1 1 . Extermination 9 | . . . . . . . 1 . . . 2 . 1 . 3 1 1 Reinforcement 16 | . . . . . . . 1 . 1 . 1 . 2 . 1 3 7 Assault 3 | . . . . 1 . . . . . . . . . . 2 . . Garrison . | . . . . . . . . . . . . . . . . . . Intercept . | . . . . . . . . . . . . . . . . . . Searches Triggered . | . . . . . . . . . . . . . . . . . . Construction Impeded 2 | . . . . . . . . . . . . . 1 . . . 1 Haulers Reinforced 3 | . . . . . . . . . . . . . . . . . 3 Active Scanning Responses 1 | . . . . . . . . . . . . . . . . 1 . Cargo Convoy Interrupts . | . . . . . . . . . . . . . . . . . . Alert ID Control Effect 37 | . . . . . . . . . . . . . 5 15 1 4 12 Stealth | -11 -10 -10 -10 -9 -8 -8 -7 -7 -7 -7 -6 -6 -5 -5 -5 -4 -3 --------- Run | Yrd Mat Min Exi Min Mat Gar Fac Gar Fac Gar Fac Gar Fac Gar Fac Fac Res Distress Signals 17 | . 4 . . . 4 . 2 . . . 1 . . . . 3 3 Communications Jammed 211 | . . . . . . . . . . . . . . . . 33 178 Distress Signals 189 | . . . . . . . . . . . . . . . . 11 178 Times Spotted 328 | . 18 8 . 10 24 20 11 17 5 8 10 . 22 60 27 27 61 Peak Tracking Total 15 | . 6 3 . 7 7 4 4 6 3 4 5 . 7 12 6 5 15 Tactical Retreats 18 | . 1 1 . 1 1 . 2 . . . . . 3 4 1 2 2 Traps | -11 -10 -10 -10 -9 -8 -8 -7 -7 -7 -7 -6 -6 -5 -5 -5 -4 -3 ------- Run | Yrd Mat Min Exi Min Mat Gar Fac Gar Fac Gar Fac Gar Fac Gar Fac Fac Res Traps Triggered 24 | . . . . . . 5 . 6 . 5 . . 1 6 1 . . Indirectly . | . . . . . . . . . . . . . . . . . . Trap Hack Attempts 86 | . . . . . . . . . 1 . . 5 . 15 65 . . Triggered . | . . . . . . . . . . . . . . . . . . Disarmed 9 | . . . . . 3 . . . 1 . . 1 3 1 . . . Reprogrammed 6 | . . . . . . . . . . . . 1 . 1 4 . . Reused . | . . . . . . . . . . . . . . . . . . Traps Extracted . | . . . . . . . . . . . . . . . . . . Installed . | . . . . . . . . . . . . . . . . . . Triggered . | . . . . . . . . . . . . . . . . . . Machines | -11 -10 -10 -10 -9 -8 -8 -7 -7 -7 -7 -6 -6 -5 -5 -5 -4 -3 ---------- Run | Yrd Mat Min Exi Min Mat Gar Fac Gar Fac Gar Fac Gar Fac Gar Fac Fac Res Machines Disabled 47 | . 1 . . . 1 7 . 4 . 3 . 3 16 8 3 . 1 Max in Single Turn 2 | . 1 . . . . 2 . 1 . 1 . 1 . 1 2 . 1 Garrison Relay 22 | . . . . . . 5 . 4 . 3 . 3 . 7 . . . Phase Generator 2 | . . . . . . 1 . . . . . . . 1 . . . Machines Repaired . | . . . . . . . . . . . . . . . . . . Machines Dismantled . | . . . . . . . . . . . . . . . . . . Machines Sabotaged . | . . . . . . . . . . . . . . . . . . Overloaded Fab Kills . | . . . . . . . . . . . . . . . . . . Hacking | -11 -10 -10 -10 -9 -8 -8 -7 -7 -7 -7 -6 -6 -5 -5 -5 -4 -3 --------- Run | Yrd Mat Min Exi Min Mat Gar Fac Gar Fac Gar Fac Gar Fac Gar Fac Fac Res Machines Accessed 41 | . 1 . 1 . 6 3 8 1 1 1 4 2 2 3 5 1 2 Terminals 31 | . 1 . . . 4 3 6 1 . 1 2 2 1 3 4 1 2 Fabricators 2 | . . . . . . . 1 . . . 1 . . . . . . Repair Stations 2 | . . . . . 1 . . . . . . . . . 1 . . Recycling Units . | . . . . . . . . . . . . . . . . . . Scanalyzers . | . . . . . . . . . . . . . . . . . . Garrison Access 5 | . . . . . 1 . 1 . 1 . 1 . 1 . . . . Total Hacks 90 | . 5 . 1 . 17 5 21 1 1 2 9 3 4 5 12 1 3 Successful 42 | . 3 . 1 . 6 2 11 1 1 1 4 2 3 2 5 . . Failed 48 | . 2 . . . 11 3 10 . . 1 5 1 1 3 7 1 3 Catastrophic 16 | . . . . . 6 . 3 . . . 2 . . 1 2 1 1 Database Lockouts . | . . . . . . . . . . . . . . . . . . Manual 34 | . 5 . 1 . 12 . 10 . . . 4 . . . 2 . . Terminals 67 | . 5 . . . 9 5 16 1 . 2 4 3 3 5 10 1 3 Fabricators 5 | . . . . . . . 3 . . . 2 . . . . . . Repair Stations 5 | . . . . . 3 . . . . . . . . . 2 . . Recycling Units . | . . . . . . . . . . . . . . . . . . Scanalyzers . | . . . . . . . . . . . . . . . . . . Garrison Access 12 | . . . . . 5 . 2 . 1 . 3 . 1 . . . . Terminal Hacks 24 | . . . 1 . 2 2 6 1 . 1 1 2 2 2 4 . . Part Schematic 1 | . . . . . . . . . . . . . . . 1 . . Open Door 1 | . . . . . . . . . . . . . . 1 . . . Branch Access Points 2 | . . . . . . . 1 . . . . . . . 1 . . Emergency Access Points 5 | . . . . . . . 1 1 . 1 . 1 . 1 . . . Machine Index 1 | . . . . . . . 1 . . . . . . . . . . Terminal Index 1 | . . . . . . . 1 . . . . . . . . . . Disarm Traps 2 | . . . . . 1 . . . . . . . 1 . . . . Dispatch Records 1 | . . . . . . . . . . . . . . . 1 . . Surveillance Status 1 | . . . . . . . . . . . . . . . 1 . . Recall Reinforcements 2 | . . . . . . . 1 . . . 1 . . . . . . Zone Layout 3 | . . . . . 1 . 1 . . . . . 1 . . . . Garrison Registry 1 | . . . . . . . . . . . . 1 . . . . . Patrol Navigation 1 | . . . . . . 1 . . . . . . . . . . . Security Stations 1 | . . . . . . 1 . . . . . . . . . . . Derelict Proto ID Bank 1 | . . . 1 . . . . . . . . . . . . . . Fabricator Hacks 1 | . . . . . . . 1 . . . . . . . . . . Build 1 | . . . . . . . 1 . . . . . . . . . . Repair Station Hacks 1 | . . . . . 1 . . . . . . . . . . . . Scan Component 1 | . . . . . 1 . . . . . . . . . . . . Recycling Unit Hacks . | . . . . . . . . . . . . . . . . . . Scanalyzer . | . . . . . . . . . . . . . . . . . . Garrison Access Hacks 5 | . . . . . 1 . 1 . 1 . 1 . 1 . . . . Unlock Access 5 | . . . . . 1 . 1 . 1 . 1 . 1 . . . . Unauthorized Hacks 11 | . 3 . . . 2 . 3 . . . 2 . . . 1 . . Terminals 5 | . 3 . . . . . 2 . . . . . . . . . . Track 1 | . 1 . . . . . . . . . . . . . . . . Assimilate 2 | . . . . . . . 2 . . . . . . . . . . Botnet 1 | . 1 . . . . . . . . . . . . . . . . Operators 1 | . 1 . . . . . . . . . . . . . . . . Fabricators 2 | . . . . . . . 1 . . . 1 . . . . . . Prioritize 1 | . . . . . . . 1 . . . . . . . . . . Fabnet 1 | . . . . . . . . . . . 1 . . . . . . Repair Stations 1 | . . . . . . . . . . . . . . . 1 . . Mechanics 1 | . . . . . . . . . . . . . . . 1 . . Recycling Units . | . . . . . . . . . . . . . . . . . . Scanalyzers . | . . . . . . . . . . . . . . . . . . Garrison Access 3 | . . . . . 2 . . . . . 1 . . . . . . Restock 1 | . . . . . 1 . . . . . . . . . . . . Reprogram 2 | . . . . . 1 . . . . . 1 . . . . . . Data Cores Recovered . | . . . . . . . . . . . . . . . . . . Used . | . . . . . . . . . . . . . . . . . . Hacking Detections 32 | . 1 . . . 6 2 6 . . 1 4 2 1 2 4 1 2 Full Trace Events 8 | . 1 . . . 2 1 2 . . . . . . 1 1 . . Feedback Events 1 | . . . . . . . 1 . . . . . . . . . . Corruption 1 | . . . . . . . 1 . . . . . . . . . . Feedback Blocked . | . . . . . . . . . . . . . . . . . . Robot Schematics Acquired . | . . . . . . . . . . . . . . . . . . Robots Built . | . . . . . . . . . . . . . . . . . . Authchips . | . . . . . . . . . . . . . . . . . . Time . | . . . . . . . . . . . . . . . . . . Total Robot Build Rating . | . . . . . . . . . . . . . . . . . . Part Schematics Acquired 1 | . . . . . . . . . . . . . . . 1 . . Parts Built 1 | . . . . . . . 1 . . . . . . . . . . Authchips . | . . . . . . . . . . . . . . . . . . Time 117 | . . . . . . . 117 . . . . . . . . . . Total Part Build Rating 7 | . . . . . . . 7 . . . . . . . . . . Parts Repaired . | . . . . . . . . . . . . . . . . . . Time . | . . . . . . . . . . . . . . . . . . Parts Recycled . | . . . . . . . . . . . . . . . . . . Recycled Matter . | . . . . . . . . . . . . . . . . . . Retrieved Matter . | . . . . . . . . . . . . . . . . . . Retrieved Components . | . . . . . . . . . . . . . . . . . . Parts Scanalyzed . | . . . . . . . . . . . . . . . . . . Part Schematics Acquired . | . . . . . . . . . . . . . . . . . . Parts Damaged . | . . . . . . . . . . . . . . . . . . Bothacking | -11 -10 -10 -10 -9 -8 -8 -7 -7 -7 -7 -6 -6 -5 -5 -5 -4 -3 ------------ Run | Yrd Mat Min Exi Min Mat Gar Fac Gar Fac Gar Fac Gar Fac Gar Fac Fac Res Used RIF Installer 5 | . . . . . . 1 . 1 . 1 . 1 . 1 . . . Signal Jammer 1 | . . . . . . . . . . . . . . 1 . . . Zone Cloak 1 | . . . . . . . . 1 . . . . . . . . . Alert ID Control 1 | . . . . . . . . . . . . 1 . . . . . Structural Interface 1 | . . . . . . . . . . 1 . . . . . . . Robots Hacked 89 | . . . . . . 9 2 5 5 6 6 . 7 21 12 12 4 Non-combat 15 | . . . . . . . . . 1 . 3 . 1 . 7 . 3 Combat 74 | . . . . . . 9 2 5 4 6 3 . 6 21 5 12 1 Robot Hacks Applied 96 | . . . . . . 9 2 5 5 7 8 . 8 21 14 12 5 parse_system 3 | . . . . . . . . . . . 1 . 1 . 1 . . no_distress 2 | . . . . . . . . . . . 1 . . . 1 . . map_earth 1 | . . . . . . . . . . . . . . . 1 . . find_fabricator 1 | . . . . . . . . . . . . . . . 1 . . drop_inventory 2 | . . . . . . . . . 1 . . . . . . . 1 purge_threat 1 | . . . . . . . . . . . . . . . 1 . . disarm_traps 1 | . . . . . . . . . . . . . . . . . 1 block_reporting 2 | . . . . . . . . . . . . . . . 1 . 1 map_route 2 | . . . . . . . . . . . 1 . 1 . . . . link_complan 1 | . . . . . . . . . . . . . . . . 1 . amplify_resonance 11 | . . . . . . 2 . . . 1 . . 1 5 1 1 . disable_weapons 2 | . . . . . . . . . . . . . . . . 2 . reboot_system 2 | . . . . . . . . . . . 1 . 1 . . . . go_dormant 5 | . . . . . . 1 . 1 1 . . . 2 . . . . overwrite_iff 15 | . . . . . . . 1 1 1 1 1 . . 7 1 2 . formatsys_low 6 | . . . . . . . . . . . 1 . . . 4 . 1 formatsys_high 39 | . . . . . . 6 1 3 2 5 2 . 2 9 2 6 1 Relay Couplers Released 98 | . . . . . . 26 . 18 . 13 . 13 . 28 . . . Machine Destruction 95 | . . . . . . 23 . 18 . 13 . 13 . 28 . . . Programmers 3 | . . . . . . 3 . . . . . . . . . . . Attached 50 | . . . . . . 8 . 8 1 6 2 3 3 13 3 3 . Fabnet Peak Effective % 3 | . . . . . . . . . . . . . 3 3 3 1 . Autooverrided 3 | . . . . . . . . . . . . . 1 1 1 . . Robots Rewired 36 | . . . 4 . . 3 . . . . 1 7 . 21 . . . Allies Hacked . | . . . . . . . . . . . . . . . . . . Hacks Repelled . | . . . . . . . . . . . . . . . . . . Allies | -11 -10 -10 -10 -9 -8 -8 -7 -7 -7 -7 -6 -6 -5 -5 -5 -4 -3 -------- Run | Yrd Mat Min Exi Min Mat Gar Fac Gar Fac Gar Fac Gar Fac Gar Fac Fac Res Total Allies 109 | . . 3 4 1 . 9 3 6 3 6 5 9 3 40 7 8 2 Largest Group 11 | . . 3 7 8 5 3 2 3 1 2 4 11 11 9 4 3 2 Highest-Rated Group 353 | . . 40 98 129 97 48 42 202 16 48 134 304 304 353 172 152 91 Highest-Rated Ally 137 | . . 16 21 31 31 21 32 95 16 32 41 80 80 80 43 137 56 Total Orders 21 | . . . . . . . 2 . . . . 7 1 . 6 2 3 STAY 7 | . . . . . . . 1 . . . . 2 . . 2 1 1 FOLLOW 6 | . . . . . . . 1 . . . . 3 . . 2 . . AID 5 | . . . . . . . . . . . . . . . 2 1 2 DROP 1 | . . . . . . . . . . . . . 1 . . . . COLLECT 2 | . . . . . . . . . . . . 2 . . . . . Ally Attacks 595 | . . 15 . 41 41 40 10 40 7 6 22 . 73 178 50 50 22 Total Damage 15500 | . . 180 . 563 757 381 245 1045 94 75 544 . 2247 5253 1171 1900 1045 Kills 124 | . . 4 . 15 5 5 2 9 . . 7 . 16 32 10 7 12 Allies Corrupted 1 | . . . . . . . . . . . . . 1 . . . . Allies Melted 1 | . . . . . . . . . . . . . . 1 . . . Intel | -11 -10 -10 -10 -9 -8 -8 -7 -7 -7 -7 -6 -6 -5 -5 -5 -4 -3 ------- Run | Yrd Mat Min Exi Min Mat Gar Fac Gar Fac Gar Fac Gar Fac Gar Fac Fac Res Robot Analysis Total . | . . . . . . . . . . . . . . . . . . Derelict Logs Recovered 3 | . . 2 . 1 . . . . . . . . . . . . . Drone Launches . | . . . . . . . . . . . . . . . . . . Drone Recoveries . | . . . . . . . . . . . . . . . . . . Exploration | -11 -10 -10 -10 -9 -8 -8 -7 -7 -7 -7 -6 -6 -5 -5 -5 -4 -3 ------------- Run | Yrd Mat Min Exi Min Mat Gar Fac Gar Fac Gar Fac Gar Fac Gar Fac Fac Res Turns Passed 18380 | 62 822 1163 1157 1174 2281 2308 737 761 249 790 670 490 349 1818 1859 885 805 Spaces Moved 10919 | 52 399 492 460 473 602 1186 678 973 214 656 749 515 328 1369 999 429 345 Core 110 | 13 1 . . . . 1 . 2 . . . . . . . . 93 Treads 1605 | . 142 492 460 473 38 . . . . . . . . . . . . Legs 3618 | 39 256 . . . 564 310 . . . . . . . 769 999 429 252 Wheels . | . . . . . . . . . . . . . . . . . . Hover 4728 | . . . . . . 875 678 242 85 656 749 515 328 600 . . . Flight 858 | . . . . . . . . 729 129 . . . . . . . . Fastest Speed 34 | 50 120 160 240 240 200 56 56 34 34 46 60 60 60 60 120 120 50 Average Speed 115 | 102 134 226 240 240 220 109 56 42 63 69 60 60 60 96 129 139 134 Slowest Speed 350 | 120 300 240 240 240 330 350 56 250 110 111 61 60 60 190 190 190 350 Overloaded Moves . | . . . . . . . . . . . . . . . . . . Propulsion Burnouts . | . . . . . . . . . . . . . . . . . . Robots Hopped 4 | . . . . . . . . . . . . . 4 . . . . Cave-ins Triggered . | . . . . . . . . . . . . . . . . . . Exploration Rate (%) 50 | 3 64 94 90 91 50 98 18 82 6 67 21 74 12 96 27 8 14 Regions Visited 17 Branch Regions 3 Pre-discovered Areas . | . . . . . . . . . . . . . . . . . . Known Exits Taken 6 | . . . . . 1 . 1 . 1 . 1 . 1 . . 1 . Unknown Exits Taken 6 | 1 1 1 1 1 . . . . . . . . . . 1 . . Scrap Searched 4 | . . 1 . 3 . . . . . . . . . . . . . Spaces Dug 20 | . . . . . . 3 11 4 . . . . . . 2 . . Terrain Destroyed 275 | . . . . . . 106 11 4 . . . . . 1 68 17 68 Melee 18 | . . . . . . 3 11 4 . . . . . . . . . Projectile 41 | . . . . . . . . . . . . . . 1 12 17 11 AOE 215 | . . . . . . 103 . . . . . . . . 56 . 56 Terrain Rammed . | . . . . . . . . . . . . . . . . . . Walls Destroyed . | . . . . . . . . . . . . . . . . . . Machines Disabled . | . . . . . . . . . . . . . . . . . . Actions | -11 -10 -10 -10 -9 -8 -8 -7 -7 -7 -7 -6 -6 -5 -5 -5 -4 -3 --------- Run | Yrd Mat Min Exi Min Mat Gar Fac Gar Fac Gar Fac Gar Fac Gar Fac Fac Res Total 16044 | 57 575 529 514 508 1410 2142 1021 1293 331 965 969 697 469 1855 1518 650 541 Wait 3486 | . 65 19 . 27 672 812 321 162 93 165 174 134 114 234 341 110 43 Move 10890 | 51 398 491 459 472 601 1184 677 971 213 654 748 513 319 1368 998 428 345 Hop 4 | . . . . . . . . . . . . . 4 . . . . Pick Up 143 | . 11 8 7 2 11 15 2 13 4 10 4 4 4 22 4 9 13 Fast Attach 92 | 6 6 1 . . 10 9 2 4 2 5 3 . 3 14 13 8 6 Attach 91 | . 2 . . . 9 6 2 9 4 9 5 1 3 12 1 12 16 Detach 29 | . . . . . . 2 . 4 2 6 . . . 2 . 9 4 Swap 78 | . 7 2 4 1 5 10 1 3 . 5 2 3 4 8 9 1 13 Drop 144 | . 13 1 7 3 11 19 2 12 5 10 6 4 2 19 21 3 6 Fire 526 | . 73 7 1 2 90 31 3 1 1 33 6 2 12 45 64 68 87 Melee 175 | . . . . . . 17 11 42 4 . 19 9 4 67 2 . . Ram 2 | . . . . . . . . . . . . . . 2 . . . Kick 10 | . . . . . . . . . . . . . . . . 2 8 Crush 2 | . . . . 1 1 . . . . . . . . . . . . Escape Stasis 196 | . . . . . . 21 . 72 . 65 . . . 38 . . . Rewire 90 | . . . 36 . . 16 . . 2 3 2 22 . 9 . . . Trap 86 | . . . . . . . . . 1 . . 5 . 15 65 . . Miscellaneous . | . . . . . . . . . . . . . . . . . . Route ------- -11/Scrapyard -10/Materials (discovered 3 exits: [*Mat x2] / [*Min]) -10/Mines (discovered 3 exits: [*Mat x2] / *Exi) -10/Exiles -9/Mines (discovered 2 exits: *Mat x2) -8/Materials (discovered 2 exits: Fac / Gar) -8/Garrison (discovered 4 exits: *Fac x3 / [*Mat]) -7/Factory (discovered 3 exits: *Low x2 / Gar) -7/Garrison (discovered 3 exits: *Fac x3) -7/Factory -7/Garrison (discovered 2 exits: *Fac x2) -6/Factory -6/Garrison (discovered 3 exits: *Fac x3) -5/Factory -5/Garrison (discovered 3 exits: *Fac x3) -5/Factory (discovered 3 exits: *Fac / Upp x2) -4/Factory -3/Research History --------- Turn | Location | Event 9 | -11/Scrapyard | Discovered new exit (range 16) 63 | -11/Scrapyard | Entered Materials 265 | -10/Materials | Core integrity fell below 50% 375 | -10/Materials | Discovered new exit (range 16) 536 | -10/Materials | Discovered new exit (range 16) 855 | -10/Materials | Build established: Mutant 857 | -10/Materials | Discovered new exit (range 10) 885 | -10/Materials | Entered Mines 1034 | -10/Mines | Learned Materials terminal intel 1209 | -10/Mines | Discovered new exit (range 10) 1378 | -10/Mines | Assisted by bots powering up and referring to "LRC-V3" 1551 | -10/Mines | Discovered new exit (range 15) 1927 | -10/Mines | Joined a pair of Derelicts in attacking an 0b10 outpost 2035 | -10/Mines | Deemed a non-threat by the Exiles lab entrance 2037 | -10/Mines | Discovered new exit (range 5) 2048 | -10/Mines | Entered Exiles 2048 | -10/Exiles | Found Exiles lab destroyed 2048 | -10/Exiles | Accompanied by 3 allies 2505 | -10/Exiles | Build established: Commander-Mutant 2868 | -10/Exiles | Opened EX-Vault 2888 | -10/Exiles | Found Firepult 3178 | -10/Exiles | Discovered new exit (range 14) 3205 | -10/Exiles | Entered Mines 3205 | -9/Mines | Accompanied by 7 allies 3206 | -9/Mines | Met a Derelict testing a Signal Generator 3208 | -9/Mines | Met a Derelict bent on vengeance 3218 | -9/Mines | Assembled infested the area 3223 | -9/Mines | Assisted by a Guerilla fighting off Assembled 3281 | -9/Mines | Learned location of 1 exit from Materials 3535 | -9/Mines | Lost 3 allies 4009 | -9/Mines | Discovered new exit (range 10) 4324 | -9/Mines | Discovered new exit (range 14) 4379 | -9/Mines | Entered Materials 4379 | -8/Materials | Accompanied by 5 allies 4379 | -8/Materials | Evolved 4 slots: Utility x4 4380 | -8/Materials | Identified exit to Factory 4381 | -8/Materials | Loaded intel: 12 terminal locations 4529 | -8/Materials | Lost 5 allies 4576 | -8/Materials | Lost 5 parts (1p1n2u1w) 4990 | -8/Materials | Build established: Scavenger-Mutant 6629 | -8/Materials | Identified exit to Garrison 6660 | -8/Materials | Entered Garrison 6814 | -8/Garrison | Triggered checkpoint 6876 | -8/Garrison | Garrison Relay disabled 6888 | -8/Garrison | Triggered checkpoint 6913 | -8/Garrison | Discovered new exit (range 5) 7224 | -8/Garrison | Build established: Mutant 7266 | -8/Garrison | Lost 3 allies 7417 | -8/Garrison | Garrison Relay disabled 7707 | -8/Garrison | Phase Generator disabled 7758 | -8/Garrison | Build established: Scavenger-Mutant 7799 | -8/Garrison | Installed Relay Interface Framework 8294 | -8/Garrison | Triggered checkpoint 8354 | -8/Garrison | Build established: Scavenger-Scout 8467 | -8/Garrison | Discovered exit to Factory (range 7) 8480 | -8/Garrison | Triggered checkpoint 8591 | -8/Garrison | Garrison Relay disabled 8671 | -8/Garrison | Learned Factory security intel 8710 | -8/Garrison | Triggered checkpoint 8774 | -8/Garrison | Garrison Relay disabled 8798 | -8/Garrison | Triggered checkpoint 8800 | -8/Garrison | Discovered exit to Factory (range 12) 8822 | -8/Garrison | Build established: Scavenger-Mutant 8878 | -8/Garrison | Triggered checkpoint 8900 | -8/Garrison | Garrison Relay disabled 8930 | -8/Garrison | Discovered exit to Factory (range 15) 8968 | -8/Garrison | Entered Factory 8968 | -7/Factory | Accompanied by 2 allies 8968 | -7/Factory | Evolved 2 slots: Utility x2 8980 | -7/Factory | Identified exit to Lower Caves 9272 | -7/Factory | Build established: Bothacker-Scout 9454 | -7/Factory | Fabricated Adv. Datajack (x1) 9704 | -7/Factory | Identified exit to Garrison 9705 | -7/Factory | Entered Garrison 9710 | -7/Garrison | Garrison Relay disabled 9784 | -7/Garrison | Discovered new exit (range 8) 9816 | -7/Garrison | Triggered checkpoint 9855 | -7/Garrison | Expanded RIF knowledge: Zone Cloak 9924 | -7/Garrison | Lost 3 parts (2n1u) 10047 | -7/Garrison | Build established: Bothacker-Mutant 10093 | -7/Garrison | Found embedded Infiltrators 10106 | -7/Garrison | Triggered checkpoint 10164 | -7/Garrison | Garrison Relay disabled 10242 | -7/Garrison | Triggered checkpoint 10296 | -7/Garrison | Discovered new exit (range 3) 10297 | -7/Garrison | Identified exit to Factory 10338 | -7/Garrison | Triggered checkpoint 10391 | -7/Garrison | Garrison Relay disabled 10429 | -7/Garrison | Discovered exit to Factory (range 9) 10435 | -7/Garrison | Garrison Relay disabled 10436 | -7/Garrison | Triggered checkpoint 10466 | -7/Garrison | Entered Factory 10715 | -7/Factory | Identified exit to Garrison 10715 | -7/Factory | Entered Garrison 10824 | -7/Garrison | Garrison Relay disabled 10866 | -7/Garrison | Triggered checkpoint 11023 | -7/Garrison | Garrison Relay disabled 11052 | -7/Garrison | Discovered new exit (range 12) 11232 | -7/Garrison | Triggered checkpoint 11263 | -7/Garrison | Expanded RIF knowledge: Structural Interface 11314 | -7/Garrison | Discovered new exit (range 12) 11414 | -7/Garrison | Triggered checkpoint 11434 | -7/Garrison | Garrison Relay disabled 11469 | -7/Garrison | Identified exit to Factory 11505 | -7/Garrison | Entered Factory 11505 | -6/Factory | Accompanied by 2 allies 11505 | -6/Factory | Evolved 2 slots: Utility x2 11886 | -6/Factory | P-60 Hacker assimilated allied Guardian 4c 12018 | -6/Factory | Identified exit to Garrison 12175 | -6/Factory | Entered Garrison 12175 | -6/Garrison | Discovered recently destroyed garrison 12175 | -6/Garrison | Accompanied by 2 allies 12188 | -6/Garrison | Discovered new exit (range 42) 12188 | -6/Garrison | Discovered new exit (range 70) 12188 | -6/Garrison | Discovered new exit (range 54) 12253 | -6/Garrison | Expanded RIF knowledge: Alert ID Control 12284 | -6/Garrison | Garrison Relay disabled 12402 | -6/Garrison | Garrison Relay disabled 12434 | -6/Garrison | Found embedded Infiltrators 12537 | -6/Garrison | Garrison Relay disabled 12619 | -6/Garrison | Identified exit to Factory 12665 | -6/Garrison | Entered Factory 12665 | -5/Factory | Accompanied by 11 allies 12665 | -5/Factory | Evolved 2 slots: Utility x2 12698 | -5/Factory | Build established: Botlord-Mutant 12726 | -5/Factory | Lost 5 allies 12934 | -5/Factory | Spotted B-75 Beast 12967 | -5/Factory | Lost 6 allies 13014 | -5/Factory | Identified exit to Garrison 13014 | -5/Factory | Entered Garrison 13030 | -5/Garrison | Lost 3 parts (3u) 13056 | -5/Garrison | Triggered checkpoint 13092 | -5/Garrison | Spotted B-75 Beast 13093 | -5/Garrison | Triggered checkpoint 13124 | -5/Garrison | Triggered checkpoint 13127 | -5/Garrison | Garrison Relay disabled 13225 | -5/Garrison | Triggered checkpoint 13234 | -5/Garrison | Triggered checkpoint 13324 | -5/Garrison | Discovered new exit (range 10) 13329 | -5/Garrison | Identified exit to Factory 13337 | -5/Garrison | Lost 6 allies 13340 | -5/Garrison | Triggered checkpoint 13494 | -5/Garrison | Garrison Relay disabled 13759 | -5/Garrison | Destroyed B-75 Beast 13875 | -5/Garrison | Garrison Relay disabled 13999 | -5/Garrison | Found embedded Infiltrators 14007 | -5/Garrison | Discovered exit to Factory (range 12) 14010 | -5/Garrison | Triggered checkpoint 14054 | -5/Garrison | Triggered checkpoint 14090 | -5/Garrison | Lost 4 allies 14107 | -5/Garrison | Garrison Relay disabled 14175 | -5/Garrison | Expanded RIF knowledge: Signal Jamming 14182 | -5/Garrison | Triggered checkpoint 14237 | -5/Garrison | Garrison Relay disabled 14392 | -5/Garrison | Phase Generator disabled 14408 | -5/Garrison | Discovered exit to Factory (range 10) 14411 | -5/Garrison | Lost 3 allies 14514 | -5/Garrison | Lost 4 allies 14542 | -5/Garrison | Triggered checkpoint 14544 | -5/Garrison | Garrison Relay disabled 14568 | -5/Garrison | Triggered checkpoint 14626 | -5/Garrison | Lost 8 allies 14731 | -5/Garrison | Garrison Relay disabled 14832 | -5/Garrison | Entered Factory 14832 | -5/Factory | Accompanied by 4 allies 15541 | -5/Factory | Lost 3 allies 15897 | -5/Factory | P-70 Sage assimilated allied Smith 6a 16032 | -5/Factory | First assault squad dispatched 16199 | -5/Factory | Core integrity fell below 50% 16504 | -5/Factory | Identified exit to Upper Caves 16610 | -5/Factory | Discovered new exit (range 5) 16691 | -5/Factory | Entered another Factory area 16691 | -4/Factory | Accompanied by 2 allies 16691 | -4/Factory | Evolved 2 slots: Propulsion x1, Utility x1 16704 | -4/Factory | Spotted B-86 Titan 17077 | -4/Factory | Found Prototype Device 17077 | -4/Factory | Identified Active Sensor Suite 17316 | -4/Factory | Found Imp. Powered Armor 17319 | -4/Factory | Found Imp. Powered Armor 17322 | -4/Factory | Found Imp. Powered Armor 17445 | -4/Factory | Lost 3 allies 17565 | -4/Factory | Discovered new exit (range 7) 17573 | -4/Factory | Identified exit to Research 17576 | -4/Factory | Entered Research 17576 | -3/Research | Evolved 2 slots: Power x1, Propulsion x1 17684 | -3/Research | Found Imp. Powered Armor 17687 | -3/Research | Found Imp. Powered Armor 17690 | -3/Research | Found Imp. Powered Armor 17693 | -3/Research | Found Imp. Powered Armor 17697 | -3/Research | Found Imp. Powered Armor 17700 | -3/Research | Found Imp. Powered Armor 17869 | -3/Research | Lost 6 parts (1n4u1w) 18014 | -3/Research | Destroyed 7 combat bots 18287 | -3/Research | Build established: Scavenger-Mutant 18317 | -3/Research | System corruption reached 10% 18324 | -3/Research | Core integrity fell below 50% 18337 | -3/Research | Core integrity fell below 20% 18337 | -3/Research | Spotted B-86 Titan 18362 | -3/Research | Lost 20 parts (2p4n11u3w) 18381 | -3/Research | Destroyed by P-80 Master with Gamma Rifle Last Messages --------------- 18331_ U-05 Engineer destroyed. 18332_ U-05 Engineer lays Concrete. 18333_ The unstable cave ceiling collapses. 18333_ Penetrated by Slug. 18334_ K-01 Serf collects debris. 18334_ R-10 Processor collects Imp. Antigrav System. 18334_ K-01 Serf collects debris. 18335_ Dropped Adv. Myomer Leg. 18336_ Knocked back. 18336_ U-05 Engineer lays Concrete. 18336_ K-01 Serf collects debris. 18338_ Connecting with Terminal... 18345_ Slug penetrates Wall. 18347_ KCIPZ/:/7X9CI YD#EGPLJP1UK#&DT 18350_ Slug penetrates Wall. 18353_ RIF reveals location of hidden door. 18362_ System corrupted: Matter fused (-10). 18369_ Terminal disabled. 18379_ System corrupted: Heat flow error (+179). Map ----- +----------------------------------------------------+ | ??????????????????????????????????????# ?????????? | | ??????????????????????????????????????# ??? ???? | | ??????????????????????????????????????# """ | | ??????????????????????????????????????# | | ??????????????????????????????????????# | | ??????????????????????????????????????# """"" | | ??????????????????????????????????????# """"" | | ??????????????????????????????????????? """"" | | ????????????????????????????????????????? | | ??????????????????????????????????????????? ?? | | ??????????????????????????????????????????###+#### | | ??????????????????????????????????######### | | ??????????????????????????? / | | ??????????????????????????????????###### | | ???????????????????????????????????????# | | ?????????????????????????????????????### ### | | ?????????????????????????????????????#" #?? | | ??????????????????????################"" #?? | | ??????????????????????# ##"T #?? | | ??????????????????????# !] ##"" #?? | | ??????????????????????# ]! ##"" #?? | | ??????????????????????? ?### #?? | | ????????????????????????? ! ?????# #?? | | ??????????????????????????? ???????# #?? | | ??????????????# ##########+########## #?? | | ??????????????# @ w p #?? | | ?????????????+ | | ?????????????## ### | | ??????????????# #?? | | ??????????????#### ##########+#############+####?? | | ?????????????????#???????????????????????????????? | | ?????????????????????????????????????????????????? | | ?????????????????????????????????????????????????? | | ?????????????????????????????????????????????????? | | ?????????????????????????????????????????????????? | | ?????????????????????????????????????????????????? | | ?????????????????????????????????????????????????? | | ?????????????????????????????????????????????????? | | ?????????????????????????????????????????????????? | | ?????????????????????????????????????????????????? | | ?????????????????????????????????????????????????? | | ?????????????????????????????????????????????????? | | ?????????????????????????????????????????????????? | | ?????????????????????????????????????????????????? | | ?????????????????????????????????????????????????? | | ?????????????????????????????????????????????????? | | ?????????????????????????????????????????????????? | | ?????????????????????????????????????????????????? | | ?????????????????????????????????????????????????? | | ?????????????????????????????????????????????????? | +----------------------------------------------------+ Best States ------------- Heat Dissipation 73 Energy Generation 37 Energy Capacity 350 Matter Stores 300 Matter Capacity 300 Sight Range 20 Robot Scan Range 20 Terrain Scan Density 10 Cloak Strength 3 Additional Mass Support 9 Armor Coverage 2200 Resistance: TH 15 Resistance: EM 15 Weapon Shielding 66 Evasion (%) 63 Targeting Accuracy 8 Recoil Reduction 2 Offensive Hacking 20 Defensive Hacking 10 Relay Coupler Types 6 Relay Coupler Value 145 Item Schematics ----------------- Biometal Leg | -5/Factory | Hacked Robot Schematics ------------------ None Fabricated ------------ Adv. Datajack | x1 | -7/Factory | Preloaded Alien Tech Used ----------------- None Achievements -------------- None Challenges ------------ None Game ------ Seed MicrowarpZioniteThruster Manual? 0 Play Time 02:19:59 Cumulative 449.4 hours Start 2024.04.03 @ 18:38:19 End 2024.04.04 @ 18:53:42 Sessions 5 Manual Loads 0 Difficulty Rogue Special Mode None Game No. 775 Rogue 620 Adventurer 148 Explorer 7 Win Type - Total 20 Types 16/1/2/1/0/0/0/0/0 Lore% 77 Gallery% 89 Achievement% 74 Wizard Run 0 Options --------- Layout 1 ASCII 0 Keyboard 0 Movement Numpad Keybinds 0 Fullscreen 2 Font 24/Smallcaps Map View 50x35 Zoom Use 0% Tactical HUD 1 Map Filters NONE Filters NONE Steam 1 RUN: 84954bb4-3bff-4054-b611-10d77879e2f0